[Event "Late-Titled-Tuesday-Blitz-August-29-2023"]
[Site "Chess.com"]
[Date "2023.08.29"]
[Round "8"]
[White "S-Fazulyanov"]
[Black "Cambek64"]
[Result "0-1"]
[WhiteElo "2591"]
[BlackElo "2510"]
[TimeControl "180+1"]
[EndTime "15:26:24 PDT"]
[Termination "Cambek64 won by resignation"]

1. e4 {[%clk 0:02:58.2]} 1... Nf6 {[%clk 0:03:00]} 2. Nc3 {[%clk 0:02:56.8]}
2... d5 {[%clk 0:02:59.5]} 3. exd5 {[%clk 0:02:53.1]} 3... Nxd5 {[%clk
0:02:56.7]} 4. Bc4 {[%clk 0:02:52.8]} 4... Nxc3 {[%clk 0:02:56.5]} 5. bxc3
{[%clk 0:02:51.5]} 5... e6 {[%clk 0:02:54]} 6. d4 {[%clk 0:02:50.2]} 6... Be7
{[%clk 0:02:52.6]} 7. Nf3 {[%clk 0:02:50.4]} 7... O-O {[%clk 0:02:52.5]} 8. Ne5
{[%clk 0:02:26.7]} 8... c5 {[%clk 0:02:50.6]} 9. O-O {[%clk 0:02:24.9]} 9...
cxd4 {[%clk 0:02:48.5]} 10. cxd4 {[%clk 0:02:25.8]} 10... Nc6 {[%clk 0:02:40.4]}
11. Nxc6 {[%clk 0:02:25.5]} 11... bxc6 {[%clk 0:02:39.2]} 12. Bb2 {[%clk
0:02:23.6]} 12... c5 {[%clk 0:02:30]} 13. dxc5 {[%clk 0:01:58]} 13... Qxd1
{[%clk 0:02:26.4]} 14. Raxd1 {[%clk 0:01:48.3]} 14... Bxc5 {[%clk 0:02:26.3]}
15. Be5 {[%clk 0:01:40.5]} 15... Bb7 {[%clk 0:02:21.6]} 16. Rd7 {[%clk
0:01:39.3]} 16... Bc6 {[%clk 0:02:17.4]} 17. Rc7 {[%clk 0:01:35.1]} 17... Rac8
{[%clk 0:02:15]} 18. Rd1 {[%clk 0:01:33.6]} 18... Rxc7 {[%clk 0:02:11.7]} 19.
Bxc7 {[%clk 0:01:34.4]} 19... Rc8 {[%clk 0:02:11.5]} 20. Be5 {[%clk 0:01:28.8]}
20... Kf8 {[%clk 0:02:09.4]} 21. Bb3 {[%clk 0:01:27.1]} 21... Ke7 {[%clk
0:01:39.9]} 22. Kf1 {[%clk 0:01:20.1]} 22... f6 {[%clk 0:01:38.7]} 23. Bd4
{[%clk 0:01:17.1]} 23... Bxd4 {[%clk 0:01:35.7]} 24. Rxd4 {[%clk 0:01:18]} 24...
e5 {[%clk 0:01:34.5]} 25. Rh4 {[%clk 0:01:13.6]} 25... h6 {[%clk 0:01:33.2]} 26.
Ke2 {[%clk 0:01:08.3]} 26... Rd8 {[%clk 0:01:28.6]} 27. f3 {[%clk 0:00:57]}
27... Kd6 {[%clk 0:01:25.6]} 28. Rg4 {[%clk 0:00:37.7]} 28... g5 {[%clk
0:01:24]} 29. h4 {[%clk 0:00:24.4]} 29... h5 {[%clk 0:01:22.7]} 30. Rb4 {[%clk
0:00:24]} 30... a5 {[%clk 0:01:18.7]} 0-1

[Event "Late-Titled-Tuesday-Blitz-August-29-2023"]
[Site "Chess.com"]
[Date "2023.08.29"]
[Round "8"]
[White "matagordo"]
[Black "Eloist"]
[Result "1/2-1/2"]
[WhiteElo "2209"]
[BlackElo "2446"]
[TimeControl "180+1"]
[EndTime "15:26:44 PDT"]
[Termination "Game drawn by repetition"]

1. d4 {[%clk 0:02:55.4]} 1... e6 {[%clk 0:02:59.9]} 2. Bf4 {[%clk 0:02:55.9]}
2... Nf6 {[%clk 0:03:00]} 3. e3 {[%clk 0:02:56.2]} 3... d5 {[%clk 0:03:00.2]} 4.
Nf3 {[%clk 0:02:56]} 4... c5 {[%clk 0:03:00.4]} 5. Nbd2 {[%clk 0:02:56.1]} 5...
Nc6 {[%clk 0:03:00.5]} 6. c3 {[%clk 0:02:56.4]} 6... Bd6 {[%clk 0:03:00.6]} 7.
Ne5 {[%clk 0:02:56.7]} 7... Qc7 {[%clk 0:02:57.6]} 8. Ndf3 {[%clk 0:02:56.8]}
8... O-O {[%clk 0:02:54.5]} 9. Bd3 {[%clk 0:02:55.9]} 9... Ne4 {[%clk
0:02:52.9]} 10. O-O {[%clk 0:02:39.4]} 10... f6 {[%clk 0:02:50.8]} 11. Nxc6
{[%clk 0:02:39]} 11... Bxf4 {[%clk 0:02:49.8]} 12. exf4 {[%clk 0:02:38.8]} 12...
bxc6 {[%clk 0:02:47]} 13. g3 {[%clk 0:02:28.8]} 13... Rb8 {[%clk 0:02:43.4]} 14.
Bxe4 {[%clk 0:02:13.7]} 14... dxe4 {[%clk 0:02:42.4]} 15. Nd2 {[%clk 0:02:14.5]}
15... cxd4 {[%clk 0:02:39.4]} 16. cxd4 {[%clk 0:02:04.1]} 16... Ba6 {[%clk
0:02:33.3]} 17. Re1 {[%clk 0:02:02.5]} 17... f5 {[%clk 0:02:33.1]} 18. b3 {[%clk
0:01:59]} 18... Rfd8 {[%clk 0:02:26.9]} 19. Nc4 {[%clk 0:01:19.2]} 19... c5
{[%clk 0:02:23.8]} 20. Ne5 {[%clk 0:01:15.1]} 20... Rxd4 {[%clk 0:02:19.3]} 21.
Qc1 {[%clk 0:01:14.6]} 21... Rbd8 {[%clk 0:02:14.2]} 22. Qa3 {[%clk 0:01:11.4]}
22... Qb6 {[%clk 0:02:03.2]} 23. Rac1 {[%clk 0:01:10.6]} 23... Rd2 {[%clk
0:01:40.9]} 24. Qxc5 {[%clk 0:00:50.3]} 24... Rxa2 {[%clk 0:01:16]} 25. Qxb6
{[%clk 0:00:48.8]} 25... axb6 {[%clk 0:01:15.8]} 26. Rc6 {[%clk 0:00:39.3]}
26... Rdd2 {[%clk 0:01:10.6]} 27. Rxe6 {[%clk 0:00:38.7]} 27... h6 {[%clk
0:01:04.8]} 28. Rxb6 {[%clk 0:00:18.8]} 28... Rxf2 {[%clk 0:00:59]} 29. Rxa6
{[%clk 0:00:18.9]} 29... Rg2+ {[%clk 0:00:58.1]} 30. Kh1 {[%clk 0:00:17.9]}
30... Rxh2+ {[%clk 0:00:57.7]} 31. Kg1 {[%clk 0:00:18.4]} 31... Rhg2+ {[%clk
0:00:50.9]} 32. Kh1 {[%clk 0:00:17.9]} 32... Rh2+ {[%clk 0:00:47.5]} 33. Kg1
{[%clk 0:00:17.8]} 33... Rag2+ {[%clk 0:00:45.6]} 34. Kf1 {[%clk 0:00:17.7]}
34... Rf2+ {[%clk 0:00:45.7]} 35. Kg1 {[%clk 0:00:17.9]} 35... Rhg2+ {[%clk
0:00:44.3]} 36. Kh1 {[%clk 0:00:18]} 36... Rh2+ {[%clk 0:00:40]} 37. Kg1 {[%clk
0:00:18.3]} 37... Rhg2+ {[%clk 0:00:40.3]} 38. Kh1 {[%clk 0:00:18.5]} 38... Rh2+
{[%clk 0:00:40.6]} 39. Kg1 {[%clk 0:00:18.9]} 1/2-1/2

[Event "Late-Titled-Tuesday-Blitz-August-29-2023"]
[Site "Chess.com"]
[Date "2023.08.29"]
[Round "8"]
[White "Walter_White_Poland"]
[Black "MYMChessAcademy"]
[Result "1/2-1/2"]
[WhiteElo "2354"]
[BlackElo "2240"]
[TimeControl "180+1"]
[EndTime "15:26:48 PDT"]
[Termination "Game drawn by repetition"]

1. e4 {[%clk 0:03:00.9]} 1... c5 {[%clk 0:02:59.6]} 2. Nf3 {[%clk 0:03:01.1]}
2... d6 {[%clk 0:02:59.8]} 3. d4 {[%clk 0:03:01.2]} 3... cxd4 {[%clk 0:03:00.7]}
4. Nxd4 {[%clk 0:03:00.7]} 4... Nf6 {[%clk 0:03:01.2]} 5. Nc3 {[%clk 0:03:00.9]}
5... a6 {[%clk 0:03:01.6]} 6. Bg5 {[%clk 0:03:01.2]} 6... e6 {[%clk 0:02:59.8]}
7. f4 {[%clk 0:03:01.1]} 7... Be7 {[%clk 0:02:59.6]} 8. Qf3 {[%clk 0:03:01]}
8... Qc7 {[%clk 0:02:58.6]} 9. O-O-O {[%clk 0:03:00.5]} 9... Nbd7 {[%clk
0:02:57.8]} 10. Bd3 {[%clk 0:03:00.3]} 10... h6 {[%clk 0:02:56.7]} 11. Bh4
{[%clk 0:02:58.7]} 11... g5 {[%clk 0:02:56.5]} 12. fxg5 {[%clk 0:02:56.7]} 12...
Ne5 {[%clk 0:02:56.3]} 13. Qe2 {[%clk 0:02:56.5]} 13... Nfg4 {[%clk 0:02:56.1]}
14. Nf3 {[%clk 0:02:55.8]} 14... Nxf3 {[%clk 0:02:36.8]} 15. gxf3 {[%clk
0:02:51.4]} 15... hxg5 {[%clk 0:02:36.8]} 16. Bg3 {[%clk 0:02:43.8]} 16... Ne5
{[%clk 0:02:29.4]} 17. h4 {[%clk 0:02:40.1]} 17... gxh4 {[%clk 0:02:24.7]} 18.
f4 {[%clk 0:02:39.4]} 18... Nxd3+ {[%clk 0:02:20.7]} 19. Rxd3 {[%clk 0:01:34.5]}
19... Bd7 {[%clk 0:02:08.1]} 20. Qe1 {[%clk 0:01:32.7]} 20... O-O-O {[%clk
0:01:40.8]} 21. Bxh4 {[%clk 0:01:29.2]} 21... Bc6 {[%clk 0:01:39.3]} 22. Bxe7
{[%clk 0:01:19.9]} 22... Rxh1 {[%clk 0:01:39.5]} 23. Qxh1 {[%clk 0:01:19]} 23...
Qxe7 {[%clk 0:01:39.7]} 24. Qh6 {[%clk 0:01:07.1]} 24... Rg8 {[%clk 0:01:36]}
25. Rd1 {[%clk 0:00:55]} 25... Rg6 {[%clk 0:01:16]} 26. Qh8+ {[%clk 0:00:51.1]}
26... Kc7 {[%clk 0:01:11.1]} 27. Qd4 {[%clk 0:00:43.1]} 27... Rg4 {[%clk
0:00:57.3]} 28. e5 {[%clk 0:00:40.1]} 28... d5 {[%clk 0:00:57.6]} 29. Qe3 {[%clk
0:00:25.2]} 29... Qh4 {[%clk 0:00:49.6]} 30. Ne2 {[%clk 0:00:23.4]} 30... Rg2
{[%clk 0:00:39]} 31. b3 {[%clk 0:00:20.5]} 31... Qg4 {[%clk 0:00:32.7]} 32. Nd4
{[%clk 0:00:18.9]} 32... Rg3 {[%clk 0:00:31.5]} 33. Qd2 {[%clk 0:00:16.1]} 33...
Rg2 {[%clk 0:00:31.6]} 34. Qe3 {[%clk 0:00:11.3]} 34... Rg3 {[%clk 0:00:31.9]}
35. Qd2 {[%clk 0:00:11.5]} 35... Rg2 {[%clk 0:00:32.3]} 36. Qe3 {[%clk
0:00:11.6]} 1/2-1/2

[Event "Late-Titled-Tuesday-Blitz-August-29-2023"]
[Site "Chess.com"]
[Date "2023.08.29"]
[Round "8"]
[White "HamedWafa4"]
[Black "Akhayan"]
[Result "0-1"]
[WhiteElo "2558"]
[BlackElo "2335"]
[TimeControl "180+1"]
[EndTime "15:26:51 PDT"]
[Termination "Akhayan won on time"]

1. e4 {[%clk 0:03:00.9]} 1... e5 {[%clk 0:02:58.9]} 2. Nf3 {[%clk 0:03:00]} 2...
Nc6 {[%clk 0:02:59.5]} 3. Bb5 {[%clk 0:02:57.3]} 3... a6 {[%clk 0:02:59.3]} 4.
Ba4 {[%clk 0:02:56.3]} 4... Nf6 {[%clk 0:02:58.8]} 5. O-O {[%clk 0:02:55.6]}
5... Be7 {[%clk 0:02:58.9]} 6. Re1 {[%clk 0:02:52.4]} 6... b5 {[%clk 0:02:59.3]}
7. Bb3 {[%clk 0:02:52]} 7... O-O {[%clk 0:02:59.8]} 8. a4 {[%clk 0:02:51.5]}
8... Bb7 {[%clk 0:02:59.1]} 9. d3 {[%clk 0:02:51]} 9... d5 {[%clk 0:02:58.7]}
10. axb5 {[%clk 0:02:38.5]} 10... axb5 {[%clk 0:02:57.9]} 11. Rxa8 {[%clk
0:02:39]} 11... Bxa8 {[%clk 0:02:54.6]} 12. exd5 {[%clk 0:02:39]} 12... Nxd5
{[%clk 0:02:54.4]} 13. Nxe5 {[%clk 0:02:39.1]} 13... Nd4 {[%clk 0:02:53.8]} 14.
c3 {[%clk 0:02:29.8]} 14... Nxb3 {[%clk 0:02:52]} 15. Qxb3 {[%clk 0:02:29.2]}
15... Bd6 {[%clk 0:02:51.6]} 16. Nf3 {[%clk 0:02:17.7]} 16... b4 {[%clk
0:02:34.4]} 17. c4 {[%clk 0:02:05.2]} 17... Nf6 {[%clk 0:02:30.1]} 18. d4 {[%clk
0:02:04.3]} 18... Ng4 {[%clk 0:02:26.4]} 19. h3 {[%clk 0:01:59.9]} 19... Nf6
{[%clk 0:02:04.3]} 20. Bg5 {[%clk 0:01:53.6]} 20... h6 {[%clk 0:02:02.2]} 21.
Bh4 {[%clk 0:01:51]} 21... g5 {[%clk 0:02:00.8]} 22. Bg3 {[%clk 0:01:33.8]}
22... Bxg3 {[%clk 0:01:59.8]} 23. fxg3 {[%clk 0:01:34]} 23... Bxf3 {[%clk
0:01:53.8]} 24. Qxf3 {[%clk 0:01:34.3]} 24... Qxd4+ {[%clk 0:01:53.5]} 25. Qf2
{[%clk 0:01:35]} 25... Qxf2+ {[%clk 0:01:49.4]} 26. Kxf2 {[%clk 0:01:35.9]}
26... Rd8 {[%clk 0:01:44.9]} 27. Re2 {[%clk 0:01:23.9]} 27... Kg7 {[%clk
0:01:44]} 28. Nd2 {[%clk 0:01:24]} 28... Rxd2 {[%clk 0:01:41.2]} 29. Rxd2 {[%clk
0:01:23.2]} 29... Ne4+ {[%clk 0:01:41.5]} 30. Ke3 {[%clk 0:01:24]} 30... Nxd2
{[%clk 0:01:41.7]} 31. Kxd2 {[%clk 0:01:24.3]} 31... Kf6 {[%clk 0:01:40.3]} 32.
Kd3 {[%clk 0:01:19.6]} 32... Ke5 {[%clk 0:01:39.8]} 33. Ke3 {[%clk 0:01:13.6]}
33... c5 {[%clk 0:01:36.5]} 34. g4 {[%clk 0:01:12.4]} 34... f5 {[%clk
0:01:31.1]} 35. g3 {[%clk 0:01:08.7]} 35... Ke6 {[%clk 0:01:15.5]} 36. gxf5+
{[%clk 0:00:08.9]} 36... Kxf5 {[%clk 0:01:15.5]} 37. Kf3 {[%clk 0:00:09.3]}
37... g4+ {[%clk 0:01:00.7]} 38. hxg4+ {[%clk 0:00:08.6]} 38... Kg5 {[%clk
0:01:01.3]} 39. b3 {[%clk 0:00:09.3]} 39... Kg6 {[%clk 0:00:56.7]} 0-1

[Event "Late-Titled-Tuesday-Blitz-August-29-2023"]
[Site "Chess.com"]
[Date "2023.08.29"]
[Round "8"]
[White "CheckThis4"]
[Black "GMKrikor"]
[Result "0-1"]
[WhiteElo "2659"]
[BlackElo "2879"]
[TimeControl "180+1"]
[EndTime "15:26:52 PDT"]
[Termination "GMKrikor won by checkmate"]

1. e4 {[%clk 0:03:00.9]} 1... e6 {[%clk 0:02:59.9]} 2. d4 {[%clk 0:03:00.5]}
2... d5 {[%clk 0:03:00.2]} 3. Nd2 {[%clk 0:03:01]} 3... c5 {[%clk 0:02:58.4]} 4.
Ngf3 {[%clk 0:03:00.1]} 4... cxd4 {[%clk 0:02:58.6]} 5. exd5 {[%clk 0:02:59.3]}
5... Qxd5 {[%clk 0:02:58.2]} 6. Bc4 {[%clk 0:02:58.4]} 6... Qd7 {[%clk
0:02:58.4]} 7. O-O {[%clk 0:02:52.1]} 7... Nc6 {[%clk 0:02:59]} 8. Nb3 {[%clk
0:02:51.6]} 8... a6 {[%clk 0:02:59.7]} 9. Qe2 {[%clk 0:02:47.5]} 9... b5 {[%clk
0:02:53]} 10. Bd3 {[%clk 0:02:46.4]} 10... Nf6 {[%clk 0:02:53.2]} 11. Rd1 {[%clk
0:02:41.3]} 11... Bb7 {[%clk 0:02:31]} 12. a4 {[%clk 0:02:36.6]} 12... b4 {[%clk
0:02:24.1]} 13. Nfxd4 {[%clk 0:02:27.9]} 13... Nxd4 {[%clk 0:02:22.5]} 14. Nxd4
{[%clk 0:02:28.8]} 14... Qd5 {[%clk 0:02:10.8]} 15. Nf3 {[%clk 0:02:23.7]} 15...
Qc6 {[%clk 0:02:07.3]} 16. Bf4 {[%clk 0:02:06.2]} 16... Bc5 {[%clk 0:02:02.3]}
17. Qf1 {[%clk 0:02:00.2]} 17... Ng4 {[%clk 0:01:06.1]} 18. Bg3 {[%clk 0:01:43]}
18... O-O-O {[%clk 0:00:55.1]} 19. h3 {[%clk 0:01:36.5]} 19... Nf6 {[%clk
0:00:55.4]} 20. Ne5 {[%clk 0:01:33.3]} 20... Qc7 {[%clk 0:00:55.9]} 21. Bxa6
{[%clk 0:01:30.7]} 21... Ne4 {[%clk 0:00:54.8]} 22. Bxb7+ {[%clk 0:01:04.6]}
22... Kxb7 {[%clk 0:00:40.4]} 23. Qb5+ {[%clk 0:01:00.3]} 23... Qb6 {[%clk
0:00:36.5]} 24. Nxf7 {[%clk 0:00:53.3]} 24... Rxd1+ {[%clk 0:00:29.2]} 25. Rxd1
{[%clk 0:00:52.2]} 25... Qxb5 {[%clk 0:00:29.3]} 26. axb5 {[%clk 0:00:51.5]}
26... Rf8 {[%clk 0:00:22.4]} 27. Nd6+ {[%clk 0:00:48.7]} 27... Nxd6 {[%clk
0:00:22.4]} 28. Rxd6 {[%clk 0:00:36.3]} 28... Bxd6 {[%clk 0:00:20.4]} 29. Bxd6
{[%clk 0:00:37.2]} 29... Rc8 {[%clk 0:00:17.1]} 30. Bxb4 {[%clk 0:00:35.8]}
30... Rxc2 {[%clk 0:00:17.1]} 31. Bc3 {[%clk 0:00:35.7]} 31... g6 {[%clk
0:00:17.7]} 32. Kf1 {[%clk 0:00:35.6]} 32... Kb6 {[%clk 0:00:18.2]} 33. Ke1
{[%clk 0:00:35.7]} 33... Kxb5 {[%clk 0:00:15.2]} 34. h4 {[%clk 0:00:33]} 34...
Kc4 {[%clk 0:00:14.8]} 35. g4 {[%clk 0:00:31.7]} 35... Kd3 {[%clk 0:00:14.2]}
36. h5 {[%clk 0:00:31.7]} 36... Rc1# {[%clk 0:00:10.7]} 0-1

[Event "Late-Titled-Tuesday-Blitz-August-29-2023"]
[Site "Chess.com"]
[Date "2023.08.29"]
[Round "8"]
[White "IMRosen"]
[Black "Valeron87"]
[Result "1-0"]
[WhiteElo "2621"]
[BlackElo "2465"]
[TimeControl "180+1"]
[EndTime "15:26:55 PDT"]
[Termination "IMRosen won on time"]

1. d4 {[%clk 0:03:00.9]} 1... d5 {[%clk 0:02:59.7]} 2. Bf4 {[%clk 0:03:00.8]}
2... e6 {[%clk 0:02:59.8]} 3. e3 {[%clk 0:03:01.1]} 3... Bd6 {[%clk 0:03:00.4]}
4. Bxd6 {[%clk 0:03:01.5]} 4... Qxd6 {[%clk 0:03:00]} 5. Qg4 {[%clk 0:03:02.1]}
5... g6 {[%clk 0:02:53.4]} 6. Nc3 {[%clk 0:03:02]} 6... Nf6 {[%clk 0:02:22.9]}
7. Qh4 {[%clk 0:03:01.7]} 7... Qe7 {[%clk 0:02:20.3]} 8. O-O-O {[%clk
0:02:56.3]} 8... a6 {[%clk 0:02:06.2]} 9. f3 {[%clk 0:02:51.9]} 9... Nc6 {[%clk
0:02:00.3]} 10. e4 {[%clk 0:02:48.4]} 10... dxe4 {[%clk 0:01:42.6]} 11. fxe4
{[%clk 0:02:48.3]} 11... e5 {[%clk 0:01:43.2]} 12. Nf3 {[%clk 0:02:20.6]} 12...
Bg4 {[%clk 0:01:32.3]} 13. dxe5 {[%clk 0:02:12.8]} 13... Nxe5 {[%clk 0:01:30.8]}
14. Be2 {[%clk 0:02:07.7]} 14... O-O {[%clk 0:01:19]} 15. h3 {[%clk 0:01:58.7]}
15... Bxf3 {[%clk 0:01:00]} 16. gxf3 {[%clk 0:01:58.9]} 16... Rfe8 {[%clk
0:00:46.4]} 17. f4 {[%clk 0:01:53.3]} 17... Nc6 {[%clk 0:00:42.8]} 18. e5 {[%clk
0:01:52.8]} 18... Nh5 {[%clk 0:00:40]} 19. Qxe7 {[%clk 0:01:48.5]} 19... Nxe7
{[%clk 0:00:40]} 20. Bxh5 {[%clk 0:01:48.7]} 20... gxh5 {[%clk 0:00:40.9]} 21.
Ne4 {[%clk 0:01:47.3]} 21... Red8 {[%clk 0:00:34.2]} 22. Nf6+ {[%clk 0:01:47.1]}
22... Kh8 {[%clk 0:00:34.4]} 23. Nxh5 {[%clk 0:01:41.4]} 23... Nf5 {[%clk
0:00:34.6]} 24. Nf6 {[%clk 0:01:35.4]} 24... Ng3 {[%clk 0:00:20.6]} 25. Rhe1
{[%clk 0:01:30.8]} 25... Rxd1+ {[%clk 0:00:20]} 26. Kxd1 {[%clk 0:01:21.3]}
26... Rd8+ {[%clk 0:00:20.3]} 27. Kc1 {[%clk 0:01:21.7]} 27... Rd4 {[%clk
0:00:18.4]} 28. f5 {[%clk 0:00:48.3]} 28... Nxf5 {[%clk 0:00:16.7]} 29. Rg1
{[%clk 0:00:48.8]} 29... Rd8 {[%clk 0:00:15.2]} 30. c3 {[%clk 0:00:43.7]} 30...
Ne3 {[%clk 0:00:10.9]} 31. Re1 {[%clk 0:00:35.9]} 31... Ng2 {[%clk 0:00:07.5]}
32. Re4 {[%clk 0:00:30]} 1-0

[Event "Late-Titled-Tuesday-Blitz-August-29-2023"]
[Site "Chess.com"]
[Date "2023.08.29"]
[Round "8"]
[White "FaustinoOro"]
[Black "komogro"]
[Result "1-0"]
[WhiteElo "2874"]
[BlackElo "2494"]
[TimeControl "180+1"]
[EndTime "15:27:08 PDT"]
[Termination "FaustinoOro won on time"]

1. Nf3 {[%clk 0:03:00.9]} 1... g6 {[%clk 0:03:00.3]} 2. e4 {[%clk 0:03:00.9]}
2... Bg7 {[%clk 0:03:00.8]} 3. d4 {[%clk 0:03:01.6]} 3... d6 {[%clk 0:03:01.5]}
4. Bc4 {[%clk 0:03:01.6]} 4... e6 {[%clk 0:03:01.2]} 5. O-O {[%clk 0:03:01.3]}
5... a6 {[%clk 0:02:59.8]} 6. Qe2 {[%clk 0:02:59.2]} 6... b5 {[%clk 0:02:58.8]}
7. Bb3 {[%clk 0:02:59.5]} 7... Bb7 {[%clk 0:02:59.4]} 8. c4 {[%clk 0:02:50.6]}
8... bxc4 {[%clk 0:02:57.5]} 9. Bxc4 {[%clk 0:02:51.5]} 9... Nd7 {[%clk
0:02:57.6]} 10. Nc3 {[%clk 0:02:51]} 10... Ne7 {[%clk 0:02:57.7]} 11. Rd1 {[%clk
0:02:49.5]} 11... O-O {[%clk 0:02:56.7]} 12. Bb3 {[%clk 0:02:47.5]} 12... h6
{[%clk 0:02:55.3]} 13. Bf4 {[%clk 0:02:45.6]} 13... Nf6 {[%clk 0:02:53.1]} 14.
Rac1 {[%clk 0:02:43.4]} 14... Kh7 {[%clk 0:02:51.6]} 15. h3 {[%clk 0:02:35.2]}
15... Qb8 {[%clk 0:02:29.1]} 16. Bc2 {[%clk 0:02:28.1]} 16... Rd8 {[%clk
0:02:24.9]} 17. Bb1 {[%clk 0:02:20.4]} 17... Qa7 {[%clk 0:02:24.2]} 18. h4
{[%clk 0:02:08.6]} 18... h5 {[%clk 0:02:20.3]} 19. Ng5+ {[%clk 0:02:07.7]} 19...
Kg8 {[%clk 0:02:20.1]} 20. e5 {[%clk 0:01:55.6]} 20... Nfd5 {[%clk 0:02:12.6]}
21. Bg3 {[%clk 0:01:55.1]} 21... Nxc3 {[%clk 0:01:59.5]} 22. bxc3 {[%clk
0:01:56]} 22... Nf5 {[%clk 0:01:46.1]} 23. Bxf5 {[%clk 0:01:54.6]} 23... exf5
{[%clk 0:01:46.1]} 24. e6 {[%clk 0:01:53.5]} 24... f6 {[%clk 0:01:46.4]} 25. e7
{[%clk 0:01:44.9]} 25... Re8 {[%clk 0:01:35.9]} 26. Qe6+ {[%clk 0:01:29.6]}
26... Kh8 {[%clk 0:01:35.2]} 27. Nf7+ {[%clk 0:01:29.2]} 27... Kh7 {[%clk
0:01:34.7]} 28. Nd8 {[%clk 0:01:27.4]} 28... Raxd8 {[%clk 0:00:22.8]} 29. exd8=Q
{[%clk 0:01:26.7]} 29... Rxd8 {[%clk 0:00:19.4]} 30. Qe7 {[%clk 0:01:25]} 30...
Qa8 {[%clk 0:00:17.3]} 31. d5 {[%clk 0:01:08.3]} 31... Re8 {[%clk 0:00:15]} 32.
Qd7 {[%clk 0:01:00.8]} 32... Re2 {[%clk 0:00:11.5]} 33. c4 {[%clk 0:00:55.3]}
33... Qc8 {[%clk 0:00:04]} 34. Qxc8 {[%clk 0:00:55.4]} 34... Bxc8 {[%clk
0:00:04.9]} 35. c5 {[%clk 0:00:56.1]} 35... Bd7 {[%clk 0:00:03.3]} 36. cxd6
{[%clk 0:00:55]} 36... cxd6 {[%clk 0:00:04.2]} 37. Bxd6 {[%clk 0:00:54.7]} 37...
g5 {[%clk 0:00:03.7]} 38. hxg5 {[%clk 0:00:53]} 38... fxg5 {[%clk 0:00:03.9]}
39. Re1 {[%clk 0:00:52.3]} 39... Rxa2 {[%clk 0:00:03.6]} 40. Re7 {[%clk
0:00:52]} 40... Bb5 {[%clk 0:00:03.8]} 41. Be5 {[%clk 0:00:50.3]} 1-0

[Event "Late-Titled-Tuesday-Blitz-August-29-2023"]
[Site "Chess.com"]
[Date "2023.08.29"]
[Round "8"]
[White "dretch"]
[Black "Berardino"]
[Result "1-0"]
[WhiteElo "2898"]
[BlackElo "2683"]
[TimeControl "180+1"]
[EndTime "15:27:19 PDT"]
[Termination "dretch won by resignation"]

1. d4 {[%clk 0:03:00.9]} 1... Nf6 {[%clk 0:02:59.9]} 2. c4 {[%clk 0:03:01.3]}
2... g6 {[%clk 0:02:57.1]} 3. Nc3 {[%clk 0:03:01.6]} 3... d5 {[%clk 0:02:56.6]}
4. Bg5 {[%clk 0:02:58.5]} 4... Ne4 {[%clk 0:02:55.9]} 5. Bf4 {[%clk 0:02:54]}
5... Nxc3 {[%clk 0:02:53.3]} 6. bxc3 {[%clk 0:02:54]} 6... Bg7 {[%clk 0:02:48]}
7. e3 {[%clk 0:02:49.4]} 7... O-O {[%clk 0:02:45.3]} 8. c5 {[%clk 0:02:44.6]}
8... b6 {[%clk 0:02:40.4]} 9. cxb6 {[%clk 0:02:42.4]} 9... axb6 {[%clk
0:02:41.3]} 10. Nf3 {[%clk 0:02:41.2]} 10... c5 {[%clk 0:02:25]} 11. Bb5 {[%clk
0:02:38.7]} 11... Ba6 {[%clk 0:02:21.3]} 12. a4 {[%clk 0:02:35.4]} 12... Nd7
{[%clk 0:01:59.9]} 13. O-O {[%clk 0:02:23.1]} 13... cxd4 {[%clk 0:01:26.5]} 14.
cxd4 {[%clk 0:02:19.3]} 14... Nc5 {[%clk 0:01:26.1]} 15. Qb1 {[%clk 0:01:42.1]}
15... Ne4 {[%clk 0:01:23.9]} 16. Rc1 {[%clk 0:01:40.9]} 16... Bxb5 {[%clk
0:01:13.8]} 17. Qxb5 {[%clk 0:01:34.5]} 17... Ra5 {[%clk 0:01:12.7]} 18. Qc6
{[%clk 0:01:34.5]} 18... Qa8 {[%clk 0:01:00.4]} 19. Qd7 {[%clk 0:01:18.1]} 19...
Bf6 {[%clk 0:00:40.8]} 20. Bc7 {[%clk 0:01:11]} 20... Rc8 {[%clk 0:00:30.1]} 21.
Bxb6 {[%clk 0:00:14.6]} 21... Nc3 {[%clk 0:00:23.4]} 22. Bxa5 {[%clk 0:00:11.9]}
22... Ne2+ {[%clk 0:00:23.1]} 23. Kh1 {[%clk 0:00:11.5]} 23... Nxc1 {[%clk
0:00:23.2]} 24. Be1 {[%clk 0:00:09.1]} 24... Nd3 {[%clk 0:00:15.1]} 25. Kg1
{[%clk 0:00:08.7]} 25... Nxe1 {[%clk 0:00:13.6]} 26. Nxe1 {[%clk 0:00:08.3]}
26... e5 {[%clk 0:00:13.7]} 27. Nf3 {[%clk 0:00:08]} 27... exd4 {[%clk
0:00:13.5]} 28. Nxd4 {[%clk 0:00:08.9]} 28... Bxd4 {[%clk 0:00:13]} 29. exd4
{[%clk 0:00:09.1]} 29... Rc4 {[%clk 0:00:13.2]} 30. a5 {[%clk 0:00:08.9]} 30...
Rxd4 {[%clk 0:00:13]} 31. h3 {[%clk 0:00:09.3]} 31... Qa6 {[%clk 0:00:09.7]} 32.
Qe8+ {[%clk 0:00:08.4]} 32... Kg7 {[%clk 0:00:06.8]} 33. Qe5+ {[%clk 0:00:09.3]}
33... Qf6 {[%clk 0:00:06.7]} 34. Qxf6+ {[%clk 0:00:09.5]} 34... Kxf6 {[%clk
0:00:06.8]} 35. a6 {[%clk 0:00:10.4]} 1-0